bitfinex-derivatives/quotes_BTCF0:USTF0_20210404
["timestamp","ask_amount","ask_price","bid_price","bid_amount"]
[1617569942530,2.61401768,58022.0,58021.0,0.27]
[1617569943028,2.85693451,58022.0,58021.0,0.27]
[1617569943829,2.45983575,58022.0,58021.0,0.27]
[1617569945534,2.96433879,58022.0,58021.0,0.27]
[1617569955249,2.96433879,58022.0,58021.0,3.2295]
[1617569956149,1.10725655,58022.0,58021.0,3.2295]
[1617569956650,2.72182577,58022.0,58021.0,3.2295]
[1617569961758,2.21729811,58022.0,58021.0,3.2295]
[1617569962760,2.7218737,58022.0,58021.0,3.2295]
[1617569963160,2.21729811,58022.0,58021.0,3.2295]
[1617569967464,2.72200199,58022.0,58021.0,3.2295]
[1617569973172,1.72200199,58022.0,58021.0,3.2295]
[1617569974075,1.96490956,58022.0,58021.0,3.2295]
[1617569976680,2.96490956,58022.0,58021.0,3.2295]
[1617569977879,2.96490956,58022.0,58021.0,0.27]
[1617569978481,6.08340956,58022.0,58021.0,0.27]
[1617569979182,6.44776811,58022.0,58021.0,0.27]
[1617569980180,5.44776811,58022.0,58021.0,0.27]
[1617569980381,6.44776811,58022.0,58021.0,0.27]
[1617569980981,5.44776811,58022.0,58021.0,0.27]
[1617569981183,6.44776811,58022.0,58021.0,0.27]
[1617569982986,5.44776811,58022.0,58021.0,0.27]
[1617569983185,6.44776811,58022.0,58021.0,0.27]
[1617569983384,5.44776811,58022.0,58021.0,0.27]
[1617569984286,5.44776811,58022.0,58021.0,0.62994521]
[1617569984786,5.44776811,58022.0,58021.0,0.27]
[1617569985488,2.32926811,58022.0,58021.0,0.27]
[1617569985688,2.32926811,58022.0,58021.0,4.06225562]
[1617569985887,2.22201156,58022.0,58021.0,4.06225562]
[1617569986088,1.85765301,58022.0,58021.0,4.06225562]
[1617569986488,1.61474544,58022.0,58021.0,4.06225562]
[1617569988398,1.11004156,58022.0,58021.0,4.06225562]
[1617569999704,1.11004156,58022.0,58021.0,4.11335562]
[1617570000412,1.11004156,58022.0,58021.0,4.06225562]
[1617570001110,1.07454156,58022.0,58021.0,4.06225562]
[1617570001309,1.31743277,58022.0,58021.0,4.06225562]
[1617570001608,1.07454156,58022.0,58021.0,4.06225562]
[1617570002310,1.06734156,58022.0,58021.0,0.62995562]
[1617570002510,1.31023076,58022.0,58021.0,0.62995562]
[1617570002914,1.06734156,58022.0,58021.0,0.62995562]
[1617570003512,1.31022971,58022.0,58021.0,0.62995562]
[1617570003912,1.06734156,58022.0,58021.0,0.62995562]
[1617570004111,1.06734156,58022.0,58021.0,0.82995562]
[1617570004512,3.59214156,58022.0,58021.0,0.82995562]
[1617570004712,3.59214156,58022.0,58021.0,0.62995562]
[1617570005315,4.19935121,58022.0,58021.0,0.62995562]
[1617570008321,4.19935121,58022.0,58021.0,0.27]
[1617570008721,4.70479418,58022.0,58021.0,0.27]
[1617570009121,4.19935121,58022.0,58021.0,0.27]
[1617570010022,1.67455121,58022.0,58021.0,0.27]
[1617570010223,1.67455121,58022.0,58021.0,3.6434]
[1617570010725,1.57278387,58022.0,58021.0,3.6434]
[1617570014724,1.57278387,58022.0,58021.0,0.27]
[1617570015127,4.86368387,58022.0,58021.0,0.27]
[1617570015329,1.06734156,58022.0,58021.0,0.27]
[1617570015729,1.67461214,58022.0,58021.0,3.5863]
[1617570016133,1.57285865,58022.0,58021.0,3.5863]
[1617570016529,1.815766,58022.0,58021.0,3.5863]
[1617570017131,1.57285865,58022.0,58021.0,3.5863]
[1617570017432,1.81576622,58022.0,58021.0,3.5863]
[1617570017832,1.57285865,58022.0,58021.0,3.5863]
[1617570018932,1.57285865,58022.0,58021.0,0.27]
[1617570019333,4.08545865,58022.0,58021.0,0.27]
[1617570019935,4.6927283,58022.0,58021.0,0.27]
[1617570025438,2.1801283,58022.0,58021.0,0.27]
[1617570025838,1.06734156,58022.0,58021.0,0.27]
[1617570026238,1.06734156,58022.0,58021.0,3.4412]
[1617570026838,1.31024694,58022.0,58021.0,3.4412]
[1617570027239,1.06734156,58022.0,58021.0,3.4412]
[1617570027641,1.06734156,58022.0,58021.0,0.62962291]
[1617570028139,4.48214156,58022.0,58021.0,0.62962291]
[1617570028540,4.9878134,58022.0,58021.0,0.82962291]
[1617570028739,5.5950775,58022.0,58021.0,0.62962291]
[1617570029539,2.1802775,58022.0,58021.0,0.62962291]
[1617570030642,1.5730134,58022.0,58021.0,0.62962291]
[1617570031042,1.8159262,58022.0,58021.0,0.27]
[1617570031341,1.5730134,58022.0,58021.0,0.27]
[1617570039749,2.5730134,58022.0,58021.0,0.27]
[1617570040250,2.81593421,58022.0,58021.0,0.27]
[1617570041351,1.81593421,58022.0,58021.0,0.27]
[1617570041955,4.3360134,58022.0,58021.0,0.27]
[1617570042355,4.94331923,58022.0,58021.0,0.27]
[1617570043354,5.94331923,58022.0,58021.0,0.27]
[1617570046157,4.94331923,58022.0,58021.0,0.27]
[1617570046559,5.94331923,58022.0,58021.0,0.27]
[1617570047763,3.18031923,58022.0,58021.0,0.27]
[1617570048163,2.81593573,58022.0,58021.0,0.27]
[1617570048764,2.81593573,58022.0,58021.0,3.059]
[1617570051164,2.81593573,58022.0,58021.0,0.27]
[1617570051566,6.27183573,58022.0,58021.0,0.27]
[1617570051967,7.20316497,58022.0,58021.0,0.27]
[1617570052466,6.63626891,58022.0,58021.0,0.27]
[1617570052870,7.203164,58022.0,58021.0,0.27]
[1617570053069,7.203164,58022.0,58021.0,0.3211]
[1617570053469,7.203164,58022.0,58021.0,0.27]
[1617570058572,7.203164,58022.0,58021.0,2.9609]
[1617570063678,3.747264,58022.0,58021.0,2.9609]
[1617570064379,2.81593573,58022.0,58021.0,2.9609]
[1617570065682,2.81593573,58022.0,58021.0,0.27]
[1617570068887,3.18037737,58022.0,58021.0,0.27]
[1617570069286,2.81593573,58022.0,58021.0,0.27]
[1617570074992,5.41063573,58022.0,58021.0,0.27]
[1617570075594,5.77508449,58022.0,58021.0,0.27]
[1617570088510,6.34118774,58022.0,58021.0,0.27]
[1617570096629,5.34118774,58022.0,58021.0,0.27]
[1617570096833,6.34118774,58022.0,58021.0,0.27]
[1617570104535,7.84118774,58022.0,58021.0,0.27]
[1617570105236,8.40811815,58022.0,58021.0,0.27]
[1617570108639,6.90811815,58022.0,58021.0,0.27]
[1617570109240,6.34118774,58022.0,58021.0,0.27]
[1617570112548,6.34118774,58022.0,58021.0,3.9532]
[1617570112750,6.34118774,58022.0,58021.0,0.27]
[1617570112949,5.34118774,58022.0,58021.0,0.27]
[1617570113350,6.34118774,58022.0,58021.0,0.27]
[1617570116153,6.90812094,58022.0,58021.0,0.27]
[1617570118958,5.90812094,58022.0,58021.0,0.27]
[1617570119157,6.90812094,58022.0,58021.0,0.27]
[1617570119559,6.34118774,58022.0,58021.0,0.27]
[1617570126365,3.74648774,58022.0,58021.0,0.27]
[1617570127166,6.64718774,58022.0,58021.0,0.27]
[1617570127367,6.28273898,58022.0,58021.0,0.27]
[1617570127669,7.21414675,58022.0,58021.0,0.27]
[1617570128167,6.64720289,58022.0,58021.0,0.27]
[1617570135573,8.14720289,58022.0,58021.0,0.27]
[1617570136273,8.7141544,58022.0,58021.0,0.27]
[1617570143985,8.7141544,58022.0,58008.0,0.10725655]
[1617570144184,8.7141544,58022.0,58009.0,0.27]
[1617570144386,1.61850878,58010.0,58009.0,0.27]
[1617570144585,1.75774878,58010.0,58009.0,0.27]
[1617570145187,2.00073061,58010.0,58009.0,0.27]
[1617570145388,2.10798716,58010.0,58009.0,0.27]
[1617570146289,6.75318716,58010.0,58009.0,0.27]
[1617570146690,4.89169655,58010.0,58009.0,0.27]
[1617570147092,6.51019746,58010.0,58009.0,0.27]
[1617570147992,7.0771599,58010.0,58009.0,0.27]
[1617570158206,6.96990335,58010.0,58009.0,0.27]
[1617570158805,6.96990335,58010.0,58006.0,0.01]
[1617570159206,6.96990335,58010.0,58009.0,0.26]
[1617570159407,7.0771599,58010.0,58006.0,0.27]
[1617570159608,7.0771599,58010.0,58007.0,0.2]
[1617570159808,6.0771599,58010.0,58007.0,0.2]
[1617570160011,1.17441634,58009.0,58008.0,0.27]
[1617570161208,2.22612033,58009.0,58008.0,0.27]
[1617570161810,3.22612033,58009.0,58008.0,0.27]
[1617570162616,3.79308144,58009.0,58008.0,0.27]
[1617570163214,3.79308144,58009.0,58006.0,0.47]
[1617570163416,3.79308144,58009.0,58007.0,0.01]
[1617570163615,3.79308144,58009.0,58008.0,0.26]
[1617570163815,1.86158667,58008.0,58006.0,0.2]
[1617570164016,1.86158667,58008.0,58007.0,0.27]
[1617570164215,0.60745731,58009.0,58007.0,0.47]
[1617570164616,1.0,58008.0,58007.0,0.2]
[1617570164819,2.61860224,58008.0,58007.0,0.2]
[1617570165017,2.61860224,58008.0,58007.0,0.21]
[1617570165917,2.86158489,58008.0,58007.0,0.21]
[1617570167219,2.86158489,58008.0,58007.0,0.01]
[1617570167419,2.86158489,58008.0,58007.0,0.21]
[1617570167619,2.86158489,58008.0,58007.0,0.2]
[1617570168022,2.86158489,58008.0,58007.0,0.47]
[1617570175129,1.24298265,58008.0,58007.0,0.47]
[1617570175529,3.22606514,58008.0,58007.0,0.47]
[1617570176130,2.86159269,58008.0,58007.0,0.47]
[1617570177231,1.86159269,58008.0,58007.0,0.47]
[1617570177431,2.86159269,58008.0,58007.0,0.47]
[1617570184239,1.86159269,58008.0,58007.0,0.27]
[1617570184439,5.40119269,58008.0,58007.0,0.27]
[1617570184641,5.15821004,58008.0,58006.0,0.27]
[1617570185039,5.15821004,58008.0,58005.0,0.10725655]
[1617570185040,4.10610989,58008.0,58007.0,0.27]
[1617570185240,4.10610989,58008.0,58006.0,0.27]
[1617570185442,6.29187111,58008.0,58006.0,0.27]
[1617570185641,2.75227111,58008.0,58007.0,0.27]
[1617570185843,6.24937111,58008.0,58006.0,0.27]
[1617570186043,3.79277021,58007.0,58006.0,0.27]
[1617570186242,3.79277021,58007.0,58005.0,3.01635655]
[1617570186442,3.79327922,58007.0,58006.0,0.27]
[1617570186743,2.79327922,58007.0,58006.0,0.27]
[1617570186945,0.93154089,58007.0,58006.0,0.27]
[1617570187143,1.93154089,58007.0,58006.0,0.27]
[1617570187344,3.55067009,58007.0,58006.0,0.27]
[1617570187744,4.11769256,58007.0,58006.0,0.27]
[1617570192049,3.55094241,58007.0,58006.0,0.27]
[1617570193251,4.11769634,58007.0,58006.0,0.27]
[1617570193653,2.55094241,58007.0,58006.0,0.27]
[1617570194253,1.61940178,58007.0,58006.0,0.27]
[1617570194660,1.86240537,58007.0,58006.0,0.27]
[1617570195056,4.61500178,58007.0,58006.0,0.27]
[1617570195453,5.22250741,58007.0,58006.0,0.27]
[1617570197458,6.22250741,58007.0,58006.0,0.27]
[1617570200162,5.4324243,58007.0,58006.0,0.27]
[1617570200462,6.18088339,58007.0,58006.0,0.27]
[1617570200661,3.18528339,58007.0,58006.0,0.27]
[1617570200863,2.61827171,58007.0,58006.0,0.27]
[1617570201965,1.0,58007.0,58006.0,0.27]
[1617570202366,2.98277634,58007.0,58006.0,0.27]
[1617570202766,1.6182657,58007.0,58006.0,0.27]
[1617570202970,2.6182657,58007.0,58006.0,0.27]
[1617570203169,2.86127305,58007.0,58006.0,0.27]
[1617570208777,3.42758847,58007.0,58006.0,0.27]
[1617570209377,6.68138847,58007.0,58006.0,0.27]
[1617570209978,7.61300475,58007.0,58006.0,0.27]
[1617570210679,7.04668933,58007.0,58006.0,0.27]
[1617570211080,7.61300782,58007.0,58006.0,0.27]
[1617570214289,4.35920782,58007.0,58006.0,0.27]
[1617570214689,4.35920782,58007.0,58006.0,2.8058]
[1617570214889,3.42759154,58007.0,58006.0,2.8058]
[1617570216589,3.42759154,58007.0,58006.0,0.27]
[1617570216993,7.13429154,58007.0,58006.0,0.27]
[1617570217191,3.42759154,58007.0,58006.0,0.27]
[1617570217393,4.35922466,58007.0,58006.0,0.27]
[1617570217597,4.35922466,58007.0,58006.0,3.2533]
[1617570217790,3.42759154,58007.0,58006.0,3.2533]
[1617570218492,3.42759154,58007.0,58006.0,0.27]
[1617570220197,3.53484809,58007.0,58006.0,0.27]
[1617570223698,7.10074809,58007.0,58006.0,0.27]
[1617570224299,8.03238972,58007.0,58006.0,0.27]
[1617570239014,8.03238972,58007.0,58001.0,0.27]
[1617570239215,4.67315655,58007.0,58006.0,0.27]
[1617570239413,4.67315655,58007.0,58000.0,0.4718]
[1617570239616,4.67315655,58007.0,58001.0,0.27]
[1617570240917,1.0,58002.0,58001.0,0.27]
[1617570242922,0.56653704,58006.0,58001.0,0.27]
[1617570243320,0.56653812,58002.0,58001.0,0.27]
[1617570254239,3.67315655,58007.0,58001.0,0.27]
[1617570254439,2.18498306,58002.0,58001.0,0.27]
[1617570265555,2.18498306,58002.0,58001.0,0.26972173]
[1617570285882,5.49838306,58002.0,58001.0,0.26972173]
[1617570286582,6.10587111,58002.0,58001.0,0.26972173]
[1617570287483,3.3134,58002.0,58001.0,0.26972173]
[1617570287884,5.49843261,58002.0,58001.0,0.26972173]
[1617570289887,5.4976802,58002.0,58001.0,0.26972173]
[1617570301010,6.4976802,58002.0,58001.0,0.26972173]
[1617570301209,6.60493675,58002.0,58001.0,0.26972173]
[1617570302710,5.60493675,58002.0,58001.0,0.26972173]
[1617570302909,6.60493675,58002.0,58001.0,0.26972173]
[1617570304314,7.17207084,58002.0,58001.0,0.26972173]
[1617570304614,6.60493675,58002.0,58001.0,0.26972173]
[1617570305214,6.60493675,58002.0,58001.0,0.37697828]
[1617570318529,6.60493675,58002.0,58001.0,0.26972173]
[1617570321433,6.60493675,58002.0,58001.0,0.37697828]
[1617570330746,6.60493675,58002.0,58001.0,0.57697828]
[1617570330947,6.60493675,58002.0,58001.0,0.37697828]
[1617570331148,7.31351508,58002.0,58001.0,0.37596558]
[1617570333953,4.00086749,58002.0,58001.0,0.37596558]
[1617570334155,4.00086749,58002.0,58001.0,3.71016558]
[1617570336957,3.00086749,58002.0,58001.0,3.71016558]
[1617570337156,4.00086749,58002.0,58001.0,3.71016558]
[1617570337957,4.00086749,58002.0,58001.0,3.82003558]
[1617570338657,3.00086749,58002.0,58001.0,3.82003558]
[1617570338857,2.89361094,58002.0,58001.0,3.82003558]
[1617570339258,2.18503261,58002.0,58001.0,3.82003558]
[1617570339458,2.18503261,58002.0,58001.0,4.02003558]
[1617570339659,2.4280595,58002.0,58001.0,4.02003558]
[1617570340062,2.18503261,58002.0,58001.0,4.02003558]
[1617570343964,2.18503261,58002.0,58001.0,5.52003558]
[1617570344565,1.61857264,58002.0,58001.0,5.52003558]
[1617570344764,1.61857264,58002.0,58001.0,6.52003558]
[1617570345664,1.61857264,58002.0,58001.0,5.52003558]
[1617570347768,1.61857264,58002.0,58001.0,4.02003558]
[1617570351475,1.61857264,58002.0,58001.0,0.68583558]
[1617570351676,4.55397264,58002.0,58001.0,0.68583558]
[1617570351876,4.04819397,58002.0,58001.0,0.68583558]
[1617570352477,4.65572117,58002.0,58001.0,0.68583558]
[1617570352676,4.65572117,58002.0,58001.0,0.57596558]
[1617570353078,1.72032117,58002.0,58001.0,0.57596558]
[1617570353278,2.22513815,58002.0,58001.0,0.57596558]
[1617570353678,1.61761095,58002.0,58001.0,0.57596558]
[1617570358887,1.61761095,58002.0,58001.0,3.90756558]
[1617570366199,1.11279397,58002.0,58001.0,3.90756558]
[1617570366697,1.61736542,58002.0,58001.0,3.90756558]
[1617570373408,1.61736542,58002.0,58001.0,4.03109558]
[1617570376114,1.80829679,58002.0,58001.0,4.03109558]
[1617570376715,1.56526542,58002.0,58001.0,4.03109558]
[1617570377616,1.49516542,58002.0,58001.0,4.03109558]
[1617570377917,1.23361798,58002.0,58001.0,4.03109558]
[1617570378316,0.99059397,58002.0,58001.0,4.03109558]
[1617570378717,1.23361732,58002.0,58001.0,4.03109558]
[1617570379119,0.99059397,58002.0,58001.0,4.03109558]
[1617570382421,0.99059397,58002.0,58001.0,0.69949558]
[1617570382623,3.91849397,58002.0,58001.0,0.69949558]
[1617570383224,4.5260476,58002.0,58001.0,0.69949558]
[1617570384425,1.5981476,58002.0,58001.0,0.69949558]
[1617570384825,1.5981476,58002.0,58001.0,4.40219558]
[1617570385026,0.99059397,58002.0,58001.0,4.40219558]
[1617570385826,1.49529293,58002.0,58001.0,4.40219558]
[1617570386829,0.99059397,58002.0,58001.0,4.40219558]
[1617570387428,1.23361302,58002.0,58001.0,4.40219558]
[1617570387628,1.23361302,58002.0,58001.0,5.90219558]
[1617570387828,0.99059397,58002.0,58001.0,5.90219558]
[1617570388028,0.99059397,58002.0,58001.0,6.90219558]
[1617570388429,0.99059397,58002.0,58001.0,5.90219558]
[1617570388830,0.99059397,58002.0,58001.0,6.90219558]
[1617570389431,0.99059397,58002.0,58001.0,5.90219558]
[1617570389830,0.99059397,58002.0,58001.0,6.90219558]
[1617570391031,0.99059397,58002.0,58001.0,5.90219558]
[1617570391431,0.99059397,58002.0,58001.0,6.90219558]
[1617570392331,0.99059397,58002.0,58001.0,5.90219558]
[1617570392632,0.54549661,58002.0,58001.0,5.90219558]
[1617570393537,0.98960064,58002.0,58001.0,5.90219558]
[1617570393736,0.98960064,58002.0,58001.0,6.90219558]
[1617570395036,0.98960064,58002.0,58001.0,5.90219558]
[1617570398443,0.98740064,58002.0,58001.0,5.90219558]
[1617570398641,1.23041037,58002.0,58001.0,5.90219558]
[1617570398944,0.98740064,58002.0,58001.0,5.90219558]
[1617570399843,0.98740064,58002.0,58001.0,6.90219558]
[1617570400244,0.98740064,58002.0,58001.0,5.90219558]
[1617570400846,0.96360064,58002.0,58001.0,5.90219558]
[1617570401347,1.20660733,58002.0,58001.0,5.90219558]
[1617570401648,0.96360064,58002.0,58001.0,5.90219558]
[1617570406153,0.10725655,58017.0,58001.0,5.90219558]
[1617570406753,0.68768882,58002.0,58001.0,5.90219558]
[1617570407154,1.19336029,58002.0,58001.0,5.90219558]
[1617570409355,1.19336029,58002.0,58001.0,4.40219558]
[1617570411958,0.68768882,58002.0,58001.0,4.40219558]
[1617570414560,1.19335999,58002.0,58001.0,4.40219558]
[1617570425979,1.55758542,58002.0,58001.0,4.40219558]
[1617570429981,1.55018542,58002.0,58001.0,4.40219558]
[1617570430182,1.79319976,58002.0,58001.0,4.40219558]
[1617570430582,1.55018542,58002.0,58001.0,4.40219558]
[1617570434485,1.55018542,58002.0,58001.0,4.20219558]
[1617570436487,1.21548542,58002.0,58001.0,4.20219558]
[1617570436687,1.37930112,58002.0,58001.0,4.20219558]
[1617570437088,1.37930112,58002.0,58001.0,4.56251557]
[1617570437089,1.13628542,58002.0,58001.0,4.56251557]
[1617570437487,1.37927736,58002.0,58001.0,4.56251557]
[1617570437788,1.13628542,58002.0,58001.0,4.56251557]
[1617570440494,1.13628542,58002.0,58001.0,4.20219558]
[1617570441395,1.13628542,58002.0,58001.0,4.56250055]
[1617570442796,1.11058542,58002.0,58001.0,4.56250055]
[1617570442996,1.35357011,58002.0,58001.0,4.56250055]
[1617570443496,1.11058542,58002.0,58001.0,4.56250055]
[1617570443896,1.35356787,58002.0,58001.0,4.56250055]
[1617570444297,1.11058542,58002.0,58001.0,4.56250055]
[1617570446597,1.11058542,58002.0,58001.0,4.20219558]
[1617570448598,1.11058542,58002.0,58001.0,0.49949558]
[1617570448804,5.26627542,58002.0,58001.0,0.37596558]
[1617570449198,5.26627542,58002.0,58001.0,0.26870903]
[1617570449600,7.00747585,58002.0,58001.0,0.26870903]
[1617570450001,6.44048123,58002.0,58001.0,0.26870903]
[1617570450400,7.11476453,58002.0,58001.0,0.26870903]
[1617570450801,6.54773778,58002.0,58001.0,0.26870903]
[1617570451201,7.114766,58002.0,58001.0,0.26870903]
[1617570452404,7.114766,58002.0,58001.0,0.37596558]
[1617570453303,6.114766,58002.0,58001.0,0.37596558]
[1617570453525,7.114766,58002.0,58001.0,0.37596558]
[1617570453907,5.54773778,58002.0,58001.0,0.37596558]
[1617570454107,6.54773778,58002.0,58001.0,0.37596558]
[1617570454809,7.11477069,58002.0,58001.0,0.37596558]
[1617570455014,6.11477069,58002.0,58001.0,0.37596558]
[1617570455409,7.11477069,58002.0,58001.0,0.37596558]
[1617570455612,6.54773778,58002.0,58001.0,0.37596558]
[1617570456113,7.11477063,58002.0,58001.0,0.37596558]
[1617570457916,6.11477063,58002.0,58001.0,0.37596558]
[1617570458215,7.11477063,58002.0,58001.0,0.37596558]
[1617570458415,6.54773778,58002.0,58001.0,0.37596558]
[1617570458817,7.11476704,58002.0,58001.0,0.37596558]
[1617570460617,6.54805546,58002.0,58001.0,0.37596558]
[1617570460917,7.11393974,58002.0,58001.0,0.37596558]
[1617570464922,6.11393974,58002.0,58001.0,0.37596558]
[1617570465122,7.11393974,58002.0,58001.0,0.37596558]
[1617570470427,6.54805546,58002.0,58001.0,0.37596558]
[1617570471830,5.54805546,58002.0,58001.0,0.37596558]
[1617570472032,6.54805546,58002.0,58001.0,0.37596558]
[1617570475834,6.54805546,58002.0,58001.0,0.26870903]
[1617570476236,7.11345075,58002.0,58001.0,0.26870903]
[1617570487952,4.26294655,58002.0,58001.0,0.26870903]
[1617570488453,6.44259926,58002.0,58001.0,0.26870903]
[1617570494860,6.44259926,58002.0,58001.0,0.26769633]
[1617570496861,7.00971633,58002.0,58001.0,0.26769633]
[1617570499364,6.44259926,58002.0,58001.0,0.26769633]
[1617570505374,6.44259926,58002.0,58001.0,0.26668361]
[1617570505772,7.94259926,58002.0,58001.0,0.26668361]
[1617570506573,8.50986228,58002.0,58001.0,0.26668361]
[1617570515489,8.50986228,58002.0,58001.0,0.26567062]
[1617570518394,9.21419186,58002.0,58001.0,0.26567062]
[1617570519195,8.50986228,58002.0,58001.0,0.26567062]
[1617570519795,9.21391828,58002.0,58001.0,0.26567062]
[1617570520596,8.50986228,58002.0,58001.0,0.26567062]
[1617570522899,9.2130568,58002.0,58001.0,0.26567062]
[1617570523301,8.50986228,58002.0,58001.0,0.26567062]
[1617570527307,9.21355999,58002.0,58001.0,0.26465762]
[1617570537818,9.21355999,58002.0,58001.0,0.26364459]
[1617570550747,9.21355999,58002.0,58001.0,0.26263156]
[1617570552844,8.21355999,58002.0,58001.0,0.26263156]
[1617570553044,9.21355999,58002.0,58001.0,0.26263156]
[1617570556353,9.24355999,58002.0,58001.0,0.1763586]
[1617570556754,10.1262948,58002.0,58001.0,0.1763586]
[1617570559058,11.12902361,58002.0,58001.0,0.1763586]
[1617570561455,11.12902361,58002.0,58001.0,0.17534555]
[1617570567063,10.1262948,58002.0,58001.0,0.17534555]
[1617570569166,9.1262948,58002.0,58001.0,0.17534555]
[1617570569369,10.1262948,58002.0,58001.0,0.17534555]
[1617570571668,10.1262948,58002.0,58001.0,0.17433248]
[1617570573271,7.0996948,58002.0,58001.0,0.17433248]
[1617570573871,6.53243178,58002.0,58001.0,0.17433248]
[1617570574271,5.59975258,58002.0,58001.0,0.17433248]
[1617570574672,5.03243178,58002.0,58001.0,0.17433248]
[1617570577373,7.85173178,58002.0,58001.0,0.17433248]
[1617570577874,8.21642723,58002.0,58001.0,0.17433248]
[1617570579077,8.10917068,58002.0,58001.0,0.17433248]
[1617570579681,8.21642723,58002.0,58001.0,0.17433248]
[1617570580082,5.39712723,58002.0,58001.0,0.17433248]
[1617570580281,5.36712723,58002.0,58001.0,3.01113248]
[1617570580481,3.76608523,58002.0,58001.0,3.15410248]
[1617570580883,3.76608523,58002.0,58001.0,0.31730248]
[1617570581082,2.88335042,58002.0,58001.0,0.31730248]
[1617570581282,2.88335042,58002.0,58001.0,0.51730248]
[1617570581483,2.17965271,58002.0,58001.0,0.51730248]
[1617570581682,2.17965271,58002.0,58001.0,0.62455903]
[1617570585383,5.07935271,58002.0,58001.0,0.62455903]
[1617570585887,5.68706841,58002.0,58001.0,0.62455903]
[1617570586286,2.78736841,58002.0,58001.0,0.62455903]
[1617570586688,6.29806841,58002.0,58001.0,0.62455903]
[1617570586887,5.69035271,58002.0,58001.0,0.62455903]
[1617570587288,6.29806839,58002.0,58001.0,0.62455903]
[1617570587689,2.22230314,58002.0,58001.0,0.62455903]
[1617570588092,1.61458746,58002.0,58001.0,0.62455903]
[1617570589493,1.85767373,58002.0,58001.0,0.62455903]
[1617570589893,1.61458746,58002.0,58001.0,0.62455903]
[1617570595602,1.61458746,58002.0,58001.0,3.95505903]
[1617570598104,1.57828746,58002.0,58001.0,3.95505903]
[1617570599809,1.0737541,58002.0,58001.0,3.95505903]
[1617570600511,1.0737541,58002.0,58001.0,0.62455903]
[1617570604915,1.0066541,58002.0,58001.0,0.62455903]
[1617570605917,0.9054541,58002.0,58001.0,0.62455903]
[1617570606322,0.70453282,58002.0,58001.0,0.62455903]
[1617570606724,0.46145264,58002.0,58001.0,0.62455903]
[1617570608732,0.90216466,58002.0,58001.0,0.62455903]
[1617570609119,0.46145264,58002.0,58001.0,0.62455903]
[1617570609520,0.45355264,58002.0,58001.0,0.62455903]
[1617570609720,0.696632,58002.0,58001.0,0.62455903]
[1617570610020,0.45355264,58002.0,58001.0,0.62455903]
[1617570612324,0.43525264,58002.0,58001.0,0.62455903]
[1617570612525,0.67832466,58002.0,58001.0,0.62455903]
[1617570612925,0.43525264,58002.0,58001.0,0.62455903]
[1617570619330,0.38345264,58002.0,58001.0,0.62455903]
[1617570619532,0.54583009,58002.0,58001.0,0.62455903]
[1617570619930,0.54583009,58002.0,58001.0,1.62455903]
[1617570620131,0.30276037,58002.0,58001.0,1.62455903]
[1617570621132,0.30276037,58002.0,58001.0,3.12455903]
[1617570621533,0.25176037,58002.0,58001.0,3.12455903]
[1617570622336,0.01011169,58002.0,58001.0,5.74495903]
[1617570622536,0.00621169,58002.0,58001.0,5.74495903]
[1617570623136,0.00510717,58003.0,58001.0,5.74495903]
[1617570623536,0.00210164,58003.0,58001.0,4.74495903]
[1617570623737,0.00210164,58003.0,58002.0,1.0]
[1617570623938,0.00210217,58004.0,58002.0,2.7]
[1617570624137,0.00210217,58004.0,58002.0,2.97]
[1617570624338,0.00210217,58004.0,58002.0,1.97]
[1617570624540,0.00210242,58005.0,58003.0,1.0]
[1617570624739,0.00210242,58005.0,58004.0,1.7]
[1617570624941,0.00210242,58005.0,58004.0,1.97]
[1617570625341,0.00210257,58006.0,58004.0,2.97]
[1617570625741,0.00210257,58006.0,58005.0,1.0]
[1617570625943,0.00210257,58006.0,58005.0,2.7]
[1617570626141,0.00210257,58006.0,58005.0,2.97]
[1617570626342,0.00110882,58007.0,58005.0,2.97]
[1617570626541,0.44075547,58019.0,58005.0,3.0216]
[1617570626745,0.44075547,58019.0,58006.0,1.0]
[1617570626945,0.44075547,58019.0,58007.0,1.7]
[1617570627145,0.44112686,58017.0,58007.0,1.97]
[1617570627945,0.44113706,58018.0,58016.0,0.30725655]
[1617570628344,0.44113706,58018.0,58017.0,0.47]
[1617570629145,0.44113706,58018.0,58017.0,0.5218]
[1617570630147,0.44113706,58018.0,58017.0,1.5218]
[1617570633147,0.41863706,58018.0,58017.0,1.5218]
[1617570633348,0.65856807,58018.0,58017.0,1.5218]
[1617570634050,0.41553706,58018.0,58017.0,1.5218]
[1617570636055,0.41553706,58018.0,58017.0,1.67193]
[1617570636653,0.41553706,58018.0,58017.0,0.67193]
[1617570636854,0.41553706,58018.0,58017.0,0.62013]
[1617570637053,0.41553706,58018.0,58017.0,0.47]
[1617570638357,0.91881758,58018.0,58017.0,0.47]
[1617570640057,0.91881758,58018.0,58017.0,0.57725655]
[1617570644268,0.91881758,58018.0,58017.0,3.67995655]
[1617570644468,1.28118465,58018.0,58017.0,3.84085655]
[1617570645069,1.28118465,58018.0,58017.0,4.84085655]
[1617570645670,1.28118465,58018.0,58017.0,3.84085655]
[1617570645873,1.28118465,58018.0,58017.0,4.84085655]
[1617570646372,1.28118465,58018.0,58017.0,3.84085655]
[1617570646574,1.28118465,58018.0,58017.0,4.84085655]
[1617570646873,0.77790413,58018.0,58017.0,4.84085655]
[1617570647976,0.72610413,58018.0,58017.0,4.84085655]
[1617570648176,0.96912869,58018.0,58017.0,4.84085655]
[1617570648576,0.72610413,58018.0,58017.0,4.84085655]
[1617570650378,0.70310413,58018.0,58017.0,4.84085655]
[1617570650577,0.9461187,58018.0,58017.0,4.84085655]
[1617570651077,0.70310413,58018.0,58017.0,4.84085655]
[1617570651279,0.70310413,58018.0,58017.0,5.34085655]
[1617570651479,0.9461175,58018.0,58017.0,5.34085655]
[1617570651682,0.9461175,58018.0,58017.0,6.34085655]
[1617570651879,1.00570792,58018.0,58017.0,6.34085655]
[1617570652479,0.99880792,58018.0,58017.0,6.34085655]
[1617570652681,0.9079795,58018.0,58017.0,6.34085655]
[1617570653080,0.66497086,58018.0,58017.0,6.34085655]
[1617570654083,0.66497086,58018.0,58017.0,6.70398622]
[1617570654288,0.57997086,58018.0,58017.0,5.70398622]
[1617570654493,0.6672701,58018.0,58017.0,5.70398622]
[1617570654689,0.5982701,58018.0,58017.0,6.70398622]
[1617570654887,0.24299924,58018.0,58017.0,6.70398622]